bitfinex/quotes_SOLUSD_20250924
["timestamp","ask_amount","ask_price","bid_price","bid_amount"]
[1758692858600,0.68,210.27,210.23,13.59559401]
[1758692858811,0.68,210.27,210.24,37.26]
[1758692859096,26.68,210.27,210.24,37.26]
[1758692859415,0.68,210.27,210.24,37.26]
[1758692860296,0.68,210.26,210.24,37.26]
[1758692860503,26.68,210.25,210.19,13.59559401]
[1758692860706,0.68,210.24,210.2,37.26]
[1758692860913,0.68,210.23,210.2,37.26]
[1758692861310,0.68,210.22,210.2,37.26]
[1758692861513,0.68,210.21,210.2,37.26]
[1758692862099,0.68,210.21,210.17,38.6]
[1758692862303,0.68,210.2,210.18,50.81559401]
[1758692862507,0.68,210.19,210.18,13.59559401]
[1758692862702,0.68,210.21,210.18,50.81559401]
[1758692862903,0.68,210.2,210.18,50.81559401]
[1758692863309,0.68,210.19,210.18,37.22]
[1758692864517,5.43760026,210.19,210.18,37.22]
[1758692864930,5.43760026,210.19,210.1,13.59559401]
[1758692865129,0.68,210.18,210.12,13.59559401]
[1758692865430,0.68,210.17,210.13,37.2]
[1758692865605,0.68,210.16,210.13,37.2]
[1758692866037,26.68,210.19,210.14,13.59559401]
[1758692866222,0.68,210.18,210.15,37.2]
[1758692866417,31.4369608,210.22,210.15,37.2]
[1758692866622,0.68,210.22,210.17,6.26612081]
[1758692866824,26.68,210.21,210.18,37.2]
[1758692867738,0.68,210.21,210.18,37.2]
[1758692868938,0.68,210.2,210.18,37.2]
[1758692869123,0.68,210.19,210.18,37.2]
[1758692870717,0.72,210.21,210.18,37.2]
[1758692870919,0.72,210.2,210.18,37.2]
[1758692871316,0.72,210.23,210.19,13.59559401]
[1758692871517,0.72,210.23,210.2,37.2]
[1758692872944,26.0,210.23,210.2,37.2]
[1758692873130,0.72,210.22,210.2,37.2]
[1758692873322,0.72,210.21,210.2,37.2]
[1758692873530,0.72,210.23,210.2,37.2]
[1758692873729,0.72,210.22,210.2,37.2]
[1758692874130,0.72,210.22,210.2,41.95737176]
[1758692874436,26.0,210.25,210.2,41.95737176]
[1758692874636,0.72,210.26,210.2,41.95737176]
[1758692875018,26.0,210.24,210.2,41.95737176]
[1758692875242,0.72,210.23,210.2,41.95737176]
[1758692875633,0.72,210.25,210.2,41.95737176]
[1758692875818,0.72,210.24,210.2,41.95737176]
[1758692876013,30.85558219,210.28,210.21,13.59559401]
[1758692876245,0.72,210.27,210.22,37.18]
[1758692876433,30.85558219,210.28,210.22,37.18]
[1758692876434,0.72,210.26,210.22,37.18]
[1758692876633,0.72,210.25,210.22,37.18]
[1758692876943,0.72,210.24,210.22,37.18]
[1758692877436,4.75604769,210.26,210.22,37.18]
[1758692877437,5.47604769,210.26,210.22,37.18]
[1758692877637,0.72,210.25,210.22,37.18]
[1758692877944,0.72,210.25,210.22,41.9368967]
[1758692878333,0.1,210.28,210.22,41.9368967]
[1758692878550,0.1,210.28,210.23,13.59559401]
[1758692878861,0.1,210.28,210.24,37.18]
[1758692879022,26.0,210.26,210.24,37.18]
[1758692879224,0.72,210.25,210.21,13.59559401]
[1758692879431,26.0,210.26,210.23,13.59559401]
[1758692879730,0.82,210.28,210.24,37.18]
[1758692879936,0.72,210.27,210.24,37.18]
[1758692880123,0.72,210.26,210.24,37.18]
[1758692881053,26.72,210.26,210.24,37.18]
[1758692881261,0.72,210.25,210.24,37.18]
[1758692881624,26.82,210.28,210.24,41.93643343]
[1758692881832,0.72,210.27,210.24,37.18]
[1758692882132,26.72,210.26,210.24,37.18]
[1758692882324,26.72,210.26,209.1,87.92141386]
[1758692882325,0.72,210.25,210.21,13.59559401]
[1758692882532,0.72,210.24,210.22,37.18]
[1758692882747,0.72,210.24,210.17,1.50806781]
[1758692882748,0.72,210.23,210.14,13.59559401]
[1758692882952,4.75714761,210.21,210.15,37.2]
[1758692883173,4.75714761,210.21,210.13,4.75893826]
[1758692883174,0.72,210.2,210.16,37.2]
[1758692883464,26.0,210.21,210.17,37.22]
[1758692883638,0.72,210.2,210.18,37.24]
[1758692884067,0.72,210.19,210.18,37.24]
[1758692885161,5.47760026,210.19,210.14,13.59559401]
[1758692885482,0.72,210.18,210.15,37.24]
[1758692885976,0.72,210.21,210.16,13.59559401]
[1758692886274,26.72,210.2,210.16,13.59559401]
[1758692886646,0.72,210.19,210.15,37.24]
[1758692887963,0.72,210.21,210.15,41.99836375]
[1758692888269,0.72,210.21,210.16,13.59559401]
[1758692888875,0.72,210.2,210.16,13.59559401]
[1758692889057,26.0,210.19,210.16,13.59559401]
[1758692889676,26.0,210.19,210.16,18.35375781]
[1758692889881,0.72,210.24,210.16,18.35375781]
[1758692890452,0.72,210.25,210.16,18.35375781]
[1758692890646,26.0,210.27,210.16,18.35375781]
[1758692890866,4.75646879,210.24,210.18,13.59559401]
[1758692891066,0.72,210.23,210.19,37.26]
[1758692891270,0.72,210.22,210.19,37.26]
[1758692891470,0.72,210.21,210.19,37.26]
[1758692892071,0.72,210.21,210.2,37.26]
[1758692894461,0.71,210.22,210.17,13.59559401]
[1758692894658,4.75682955,210.23,210.17,13.59559401]
[1758692894858,5.46682955,210.23,210.17,18.35364]
[1758692895380,0.71,210.22,210.19,13.59559401]
[1758692895568,26.71,210.24,210.19,13.59559401]
[1758692895750,0.71,210.23,210.19,13.59559401]
[1758692896371,0.71,210.22,210.19,13.59559401]
[1758692897283,0.71,210.21,210.2,37.26]
[1758692898664,5.46672624,210.23,210.2,37.26]
[1758692898866,0.71,210.22,210.2,37.26]
[1758692900883,0.67,210.21,210.2,37.26]
[1758692901362,31.42647342,210.24,210.2,37.26]
[1758692901562,0.67,210.23,210.2,37.26]
[1758692901762,0.67,210.22,210.2,37.26]
[1758692902364,0.67,210.21,210.2,37.26]
[1758692902960,0.67,210.23,210.2,37.26]
[1758692903282,0.67,210.22,210.2,37.26]
[1758692904182,4.75669726,210.23,210.2,37.26]
[1758692904383,0.67,210.22,210.2,37.26]
[1758692905981,26.0,210.24,210.2,37.26]
[1758692906187,26.67,210.24,210.2,37.26]
[1758692906490,26.0,210.24,210.2,42.01735573]
[1758692906786,26.0,210.24,210.21,13.59559401]
[1758692907365,26.67,210.27,210.21,13.59559401]
[1758692907669,0.67,210.27,210.21,13.59559401]
[1758692907870,0.1,210.28,210.21,13.59559401]
[1758692908188,0.1,210.28,210.23,13.59559401]
[1758692908395,0.1,210.28,210.25,13.59559401]
[1758692910269,0.77,210.28,210.25,13.59559401]
[1758692911273,0.77,210.28,210.26,37.18]
[1758692913214,0.1,210.28,210.26,37.18]
[1758692914309,0.77,210.28,210.26,37.18]
[1758692915709,0.1,210.28,210.26,41.93600937]
[1758692916426,0.1,210.28,210.27,13.59559401]
[1758692917381,0.1,210.28,210.27,50.73559401]
[1758692917591,0.1,210.28,210.27,55.49138418]
[1758692918079,0.1,210.28,210.27,56.99945199]
[1758692918680,0.1,210.28,210.27,57.84643627]
[1758692919302,1e-08,210.28,210.27,57.84643627]
[1758692924301,1e-08,210.28,210.27,57.80643627]
[1758692928294,1e-08,210.28,210.27,20.70643627]
[1758692928514,1e-08,210.28,210.27,83.78643627]
[1758692939036,0.72,210.36,210.35,13.59559401]
[1758692939237,0.72,210.36,210.35,53.0306461]
[1758692939535,0.82,210.38,210.35,53.0306461]
[1758692939728,0.72,210.37,210.35,53.0306461]
[1758692940029,0.1,210.38,210.35,53.0306461]
[1758692940245,0.72,210.36,210.35,53.0306461]
[1758692940413,0.72,210.36,210.35,57.78462755]
[1758692940616,0.72,210.36,210.35,55.42957546]
[1758692942019,0.1,210.38,210.35,67.3145291]
[1758692942319,0.1,210.38,210.37,15.9506461]
[1758692942523,0.1,210.38,210.37,57.78417559]
[1758692942729,0.82,210.38,210.37,57.78417559]
[1758692943014,0.82,210.38,210.37,55.4291235]
[1758692943220,0.82,210.38,210.37,13.59559401]
[1758692943428,0.82,210.38,210.37,50.67559401]
[1758692945323,0.82,210.38,210.37,57.78417559]
[1758692945840,0.1,210.38,210.37,55.4291235]
[1758692946045,0.72,210.43,210.41,39.59559401]
[1758692946251,0.72,210.43,210.42,53.0306461]
[1758692946459,0.1,210.46,210.39,26.0]
[1758692946620,0.1,210.46,210.41,13.59559401]
[1758692946932,0.1,210.46,210.42,37.08]
[1758692946933,0.72,210.45,210.42,37.08]
[1758692947134,0.72,210.44,210.42,37.08]
[1758692947349,0.72,210.43,210.42,37.08]
[1758692947715,0.72,210.43,210.4,26.0]
[1758692948029,0.72,210.42,210.41,37.08]
[1758692948638,0.72,210.42,210.41,50.67559401]
[1758692949050,0.72,210.44,210.42,13.59559401]
[1758692949221,0.1,210.46,210.44,13.59559401]
[1758692949421,0.1,210.46,210.45,50.65559401]
[1758692949829,0.82,210.46,210.45,50.65559401]
[1758692951957,0.82,210.46,210.42,13.59559401]
[1758692952146,0.72,210.45,210.44,13.59559401]
[1758692952454,0.72,210.45,210.44,37.06]
[1758692952844,0.72,210.45,210.44,50.65559401]
[1758692953044,0.1,210.46,210.45,13.59559401]
[1758692953433,0.1,210.46,210.45,18.3473165]
[1758692953630,0.72,210.49,210.45,18.3473165]
[1758692953631,0.72,210.59,210.49,13.59559401]
[1758692953958,0.1,210.6,210.55,13.59559401]
[1758692954245,14.84531519,210.67,210.63,14.33]
[1758692954246,2.48517112,210.67,210.63,14.33]
[1758692954430,2.48517112,210.67,210.6,28.67]
[1758692954431,2.48517112,210.67,210.66,26.0]
[1758692954628,0.72,210.7,210.66,38.18]
[1758692954852,0.72,210.69,210.66,38.18]
[1758692955052,0.72,210.68,210.67,38.22]
[1758692958564,0.72,210.68,210.55,11.8735403]
[1758692958565,4.74676033,210.67,210.47,20.0]
[1758692958768,4.74676033,210.67,209.58,80.4]
[1758692958769,0.72,210.66,210.51,41.63220651]
[1758692958970,0.72,210.65,210.54,2.35505209]
[1758692959147,0.72,210.64,210.55,41.63220651]
[1758692959353,0.72,210.63,210.55,38.18]
[1758692959572,0.72,210.62,210.55,38.18]
[1758692959752,0.72,210.61,210.55,38.18]
[1758692959954,0.72,210.6,210.55,38.18]
[1758692960163,0.72,210.59,210.55,38.18]
[1758692960373,0.72,210.58,210.46,11.8787418]
[1758692960563,26.0,210.68,210.47,43.98892247]
[1758692960564,0.68,210.57,210.47,43.98892247]
[1758692960748,0.68,210.56,210.51,26.0]
[1758692960948,0.68,210.56,210.49,2.35505209]
[1758692960949,0.68,210.56,210.52,38.18]
[1758692961460,0.68,210.59,210.52,38.18]
[1758692962174,0.68,210.59,210.54,0.1737178]
[1758692962345,0.68,210.59,210.55,38.2]
[1758692962744,0.68,210.59,210.55,42.94942904]
[1758692963357,0.68,210.58,210.55,38.2]
[1758692963669,0.68,210.57,210.55,38.2]
[1758692964353,48.91337613,210.75,210.56,15.9506461]
[1758692964354,0.68,210.63,210.56,15.9506461]
[1758692964543,0.68,210.7,210.63,4.74766177]
[1758692964850,0.68,210.69,210.64,38.16]
[1758692965162,0.68,210.68,210.65,38.26]
[1758692965350,0.68,210.67,210.66,38.24]
[1758692965752,16.60814272,210.74,210.66,38.24]
[1758692965954,13.59559401,210.83,210.66,38.24]
[1758692965955,0.68,210.78,210.72,13.59559401]
[1758692966160,0.68,210.77,210.73,38.24]
[1758692966365,0.68,210.76,210.73,38.24]
[1758692966550,0.68,210.75,210.74,38.68]
[1758692966867,0.68,210.75,210.68,13.59559401]
[1758692967069,14.34247518,210.81,210.69,38.68]
[1758692967070,0.68,210.74,210.69,38.68]
[1758692967256,0.68,210.73,210.69,38.68]
[1758692967454,0.68,210.72,210.69,38.68]
[1758692967870,0.68,210.71,210.69,38.68]
[1758692968071,4.74450823,210.77,210.69,38.68]
[1758692968257,0.68,210.76,210.69,38.68]
[1758692968458,0.68,210.75,210.63,26.0]
[1758692968756,16.60893085,210.73,210.64,52.25559401]
[1758692968959,0.68,210.72,210.65,38.66]
[1758692969170,16.60893085,210.73,210.65,38.66]
[1758692969171,0.68,210.71,210.65,38.66]
[1758692969475,0.68,210.7,210.65,38.66]
[1758692969678,5.42647632,210.69,210.65,38.66]
[1758692969855,0.68,210.68,210.65,38.66]
[1758692970050,0.68,210.67,210.65,38.66]
[1758692970267,0.68,210.66,210.57,13.59559401]
[1758692970469,0.68,210.65,210.59,13.59559401]
[1758692970656,0.68,210.65,210.58,38.64]
[1758692970856,0.68,210.64,210.58,38.64]
[1758692971466,0.68,210.68,210.59,15.9506461]
[1758692971674,0.68,210.68,210.59,18.34395976]
[1758692972482,4.74655875,210.68,210.59,18.34395976]
[1758692972771,0.68,210.67,210.6,38.76]
[1758692972977,0.68,210.66,210.61,38.76]
[1758692973157,0.68,210.65,210.61,38.76]
[1758692973353,0.68,210.64,210.61,38.76]
[1758692973678,4.74788719,210.62,210.54,0.1737178]
[1758692974063,0.68,210.61,210.55,38.76]
[1758692974366,0.68,210.6,210.54,0.1737178]
[1758692975860,4.74856355,210.59,210.54,0.1737178]
[1758692976058,0.68,210.58,210.54,0.1737178]
[1758692976252,0.68,210.57,210.54,0.1737178]
[1758692976453,0.68,210.56,210.54,0.1737178]
[1758692976762,0.68,210.56,210.55,38.76]
[1758692977359,0.68,210.59,210.55,38.76]
[1758692977656,0.68,210.58,210.55,38.76]
[1758692979988,0.68,210.61,210.55,38.76]
[1758692980187,0.68,210.6,210.55,38.76]
[1758692980373,0.68,210.59,210.55,38.76]
[1758692980577,0.68,210.58,210.54,0.1737178]
[1758692981461,16.62155101,210.57,210.54,0.1737178]
[1758692981660,0.68,210.56,210.54,0.1737178]
[1758692981864,0.68,210.55,210.54,0.1737178]
[1758692982592,26.68,210.55,210.48,30.52]
[1758692982773,0.68,210.54,210.48,30.52]
[1758692982980,0.68,210.53,210.48,30.52]
[1758692983279,0.68,210.52,210.48,30.52]
[1758692983578,4.75036815,210.51,210.48,30.52]
[1758692983769,0.68,210.5,210.48,30.52]
[1758692984165,0.68,210.5,210.47,38.64]
[1758692984786,0.68,210.49,210.44,0.2]
[1758692985376,4.75104522,210.48,210.44,0.2]
[1758692985583,0.68,210.47,210.44,0.2]
[1758692986792,4.75149672,210.46,210.44,0.2]
[1758692987000,0.68,210.45,210.44,0.2]
[1758692989487,5.43172249,210.45,210.44,0.2]
[1758692989890,0.68,210.45,210.44,0.2]
[1758692990300,5.43172249,210.45,210.44,0.2]
[1758692990485,4.75140164,210.47,210.44,0.2]
[1758692990807,0.72,210.45,210.44,0.2]
[1758692991673,4.75194829,210.44,210.4,38.56]
[1758692991889,0.72,210.43,210.4,38.56]
[1758692992072,0.72,210.42,210.4,38.56]
[1758692992772,0.72,210.42,210.36,4.75375169]
[1758692992990,0.72,210.42,210.37,38.56]
[1758692993491,0.72,210.41,210.37,38.56]
[1758692993683,5.47268261,210.41,210.37,38.56]
[1758692994692,0.72,210.4,210.37,38.56]
[1758692994872,4.75268261,210.41,210.37,38.56]
[1758692995193,5.47268261,210.41,210.37,38.56]
[1758692995398,4.75268261,210.41,210.37,38.56]
[1758692995600,5.47239075,210.43,210.37,38.56]
[1758692996686,0.72,210.42,210.37,38.56]
[1758692996986,0.72,210.41,210.37,38.56]
[1758692997179,4.75239075,210.43,210.37,38.56]
[1758692997377,0.72,210.4,210.37,38.56]
[1758692997578,0.72,210.43,210.37,38.56]
[1758692997797,5.47226165,210.43,210.37,38.56]
[1758692998682,2.48510742,210.45,210.38,13.59559401]
[1758692998888,0.72,210.47,210.38,13.59559401]
[1758692999403,0.72,210.46,210.38,13.59559401]
[1758692999782,5.47169927,210.46,210.38,13.59559401]
[1758692999986,0.72,210.45,210.37,38.56]
[1758693000198,0.72,210.45,210.31,13.59559401]
[1758693000408,0.72,210.44,210.32,38.48]
[1758693000601,0.72,210.43,210.32,38.48]
[1758693000912,0.72,210.42,210.32,38.48]
[1758693001098,0.72,210.42,210.33,13.59559401]
[1758693001408,0.72,210.45,210.35,13.59559401]
[1758693001585,0.72,210.45,210.36,38.48]
[1758693001785,4.75194829,210.44,210.36,38.48]
[1758693002501,7.23585166,210.48,210.37,13.59559401]
[1758693002996,0.72,210.47,210.36,38.48]
[1758693003200,7.23585166,210.48,210.36,38.48]
[1758693003201,0.72,210.46,210.36,38.48]
[1758693003387,0.72,210.45,210.36,38.48]
[1758693003587,0.72,210.44,210.36,38.48]
[1758693003902,4.75217411,210.43,210.36,43.23364691]
[1758693005103,4.75194829,210.44,210.36,43.23364691]
[1758693005681,0.72,210.43,210.28,13.59559401]
[1758693005904,0.72,210.42,210.34,38.46]
[1758693006082,0.72,210.41,210.34,38.46]
[1758693006980,4.75285171,210.4,210.34,38.46]
[1758693007986,16.63498098,210.4,210.34,38.44]
[1758693009986,4.75285171,210.4,210.34,38.44]
[1758693010990,0.72,210.45,210.35,13.59559401]
[1758693011304,0.72,210.45,210.35,18.34937666]
[1758693012414,16.63102873,210.45,210.35,18.34937666]
[1758693012901,0.72,210.44,210.36,38.38]
[1758693013217,0.72,210.43,210.36,38.38]
[1758693013414,0.72,210.42,210.36,38.38]
[1758693014294,26.72,210.42,210.36,38.38]
[1758693014481,16.63419038,210.41,210.36,38.38]
[1758693014685,16.63419038,210.41,210.34,38.36]
[1758693014686,17.34419038,210.41,210.34,38.36]
[1758693015606,16.63419038,210.41,210.31,13.59559401]
[1758693015801,0.71,210.4,210.32,38.34]
[1758693016013,0.71,210.4,210.33,38.34]
[1758693016511,16.6365624,210.38,210.33,38.34]
[1758693016706,4.75330354,210.38,210.33,38.34]
[1758693017907,5.4630715,210.4,210.33,38.34]
[1758693018087,4.7530715,210.4,210.33,43.09434597]
[1758693018282,4.7530715,210.4,210.33,38.34]
[1758693018517,17.34520077,210.4,210.33,38.34]
[1758693019814,5.4630715,210.4,210.33,38.34]
[1758693020024,4.7530715,210.4,210.33,43.09435772]
[1758693020324,23.75278194,210.51,210.38,13.59559401]
[1758693020509,3.15480281,210.48,210.39,38.34]
[1758693020689,29.15480281,210.48,210.39,38.34]
[1758693021309,4.75127096,210.47,210.39,43.09301995]
[1758693021543,26.0,210.46,210.39,43.09301995]
[1758693022110,4.75127096,210.47,210.4,13.59559401]
[1758693022507,26.0,210.46,210.4,13.59559401]
[1758693023195,30.75165254,210.46,210.4,13.59559401]
[1758693023599,30.75165254,210.46,210.4,18.34839385]
[1758693025119,30.75165254,210.46,210.4,13.59559401]
[1758693025491,30.75165254,210.46,210.41,38.26]
[1758693028020,4.75127096,210.47,210.41,43.01261169]
[1758693030316,4.75127096,210.47,210.42,13.59559401]
[1758693030521,5.42127096,210.47,210.42,13.59559401]
[1758693032911,0.67,210.46,210.41,38.26]
[1758693033093,0.67,210.45,210.41,38.26]
[1758693034421,4.75194829,210.44,210.41,38.26]
[1758693034622,4.75194829,210.44,210.38,18.34887463]
[1758693034812,0.67,210.43,210.36,13.59559401]
[1758693035118,0.67,210.43,210.38,13.59559401]
[1758693035314,0.67,210.42,210.37,38.1]
[1758693036204,0.67,210.41,210.38,38.1]
[1758693036410,4.75285171,210.4,210.38,38.1]
[1758693036610,4.75285171,210.4,210.31,27.50686242]
[1758693036611,0.67,210.39,210.31,27.50686242]
[1758693036824,0.67,210.39,210.27,13.59559401]
[1758693037030,0.67,210.38,210.29,13.59559401]
[1758693037323,4.75285171,210.4,210.34,13.59559401]
[1758693037628,4.75285171,210.4,210.35,38.1]
[1758693037804,5.42285171,210.4,210.35,38.1]
[1758693038004,5.42285171,210.4,210.36,38.1]
[1758693038723,5.42285171,210.4,210.32,38.08]
[1758693038724,1.86059319,210.39,210.32,38.08]
[1758693038924,0.67,210.38,210.32,38.08]
[1758693039305,0.67,210.37,210.32,38.08]
[1758693039626,0.67,210.36,210.32,38.08]
[1758693040125,0.67,210.38,210.32,38.08]
[1758693040501,4.75352949,210.37,210.32,38.08]
[1758693040731,5.42352949,210.37,210.32,38.08]
[1758693042117,0.67,210.36,210.33,38.12]
[1758693042309,4.75352949,210.37,210.33,38.12]
[1758693042624,4.75262582,210.41,210.34,13.59559401]
[1758693042826,0.67,210.44,210.36,13.59559401]
[1758693043011,6.61239442,210.44,210.37,38.08]
[1758693043205,6.61239442,210.44,210.33,42.64048295]
[1758693043206,1.86037715,210.43,210.34,13.59559401]
[1758693043399,0.67,210.42,210.3,2.35512711]
[1758693043713,26.67,210.41,210.31,51.73559401]
[1758693043913,30.75194829,210.44,210.38,13.59559401]
[1758693044101,30.75194829,210.44,210.39,38.14]
[1758693044303,0.67,210.43,210.31,13.59559401]
[1758693044502,1.86030954,210.43,210.33,2.35512711]
[1758693044720,5.42239996,210.42,210.35,13.59559401]
[1758693045099,5.42239996,210.42,210.32,7.10968304]
[1758693045100,0.67,210.41,210.32,7.10968304]
[1758693045327,1.86049823,210.41,210.33,51.99559401]
[1758693045736,0.67,210.41,210.33,51.99559401]
[1758693045911,1.86048179,210.41,210.33,51.99559401]
[1758693046226,4.75285171,210.4,210.33,56.74986923]
[1758693046628,4.75285171,210.4,210.33,59.10499634]
[1758693048136,2.4850302,210.46,210.33,59.10499634]
[1758693048137,0.67,210.57,210.4,39.59559401]
[1758693048443,1.1898866,210.58,210.52,13.59559401]
[1758693048622,3.67325144,210.58,210.53,38.92]
[1758693048937,1.1898866,210.57,210.53,38.92]
[1758693049225,1.8598866,210.57,210.53,38.92]
[1758693049732,1.1898866,210.57,210.54,15.95072112]
[1758693050035,4.74766177,210.63,210.57,13.59559401]
[1758693050331,1.189532,210.62,210.57,52.49559401]
[1758693050710,27.189532,210.62,210.57,52.49559401]
[1758693050911,4.74766177,210.63,210.58,38.88]
[1758693051126,1.18945333,210.62,210.58,38.88]
[1758693051329,1.87945333,210.62,210.58,38.88]
[1758693051831,6.6273515,210.62,210.59,38.88]
[1758693052032,5.43789817,210.62,210.59,38.88]
[1758693052530,33.23049959,210.64,210.59,38.88]
[1758693052710,33.92049959,210.64,210.59,38.88]
[1758693052911,0.69,210.63,210.59,38.88]
[1758693053233,33.23049959,210.64,210.56,38.84]
[1758693053234,0.69,210.62,210.56,38.84]
[1758693053422,0.69,210.61,210.56,38.84]
[1758693053729,0.69,210.6,210.56,38.84]
[1758693053934,16.61681621,210.63,210.56,38.84]
[1758693054102,0.69,210.6,210.56,38.84]
[1758693054304,0.69,210.59,210.56,38.84]
[1758693055509,4.74878905,210.58,210.56,38.84]
[1758693055937,5.43788719,210.62,210.56,38.84]
[1758693057718,26.69,210.61,210.52,2.35512711]
[1758693057938,0.69,210.6,210.53,38.8]
[1758693058133,0.69,210.59,210.53,38.8]
[1758693059337,4.74878905,210.58,210.53,38.8]
[1758693060736,4.74833808,210.6,210.54,15.95072112]
[1758693060934,30.74808714,210.62,210.56,2.35512711]
[1758693061135,30.74808714,210.62,210.57,38.74]
[1758693061516,31.43808714,210.62,210.57,38.74]
[1758693061724,5.43808714,210.62,210.57,38.74]
[1758693063643,2.48287713,210.64,210.6,2.35512711]
[1758693063829,2.48287713,210.64,210.58,13.59559401]
[1758693063830,0.1,210.69,210.62,2.35512711]
[1758693064138,0.1,210.69,210.64,2.35512711]
[1758693064341,0.1,210.69,210.65,38.72]
[1758693064749,0.1,210.69,210.66,2.35512711]
[1758693065344,0.1,210.69,210.66,13.59559401]
[1758693066727,0.1,210.69,210.66,19.12779656]
[1758693067522,0.1,210.69,210.66,23.87476075]
[1758693067727,0.1,210.69,210.66,19.12779656]
[1758693068136,0.1,210.69,210.66,23.87473853]
[1758693068444,0.1,210.69,210.66,19.12779656]
[1758693068827,0.1,210.69,210.65,44.25220255]
[1758693069030,0.1,210.69,210.66,38.62]
[1758693070629,4.84640289,210.69,210.63,18.3432477]
[1758693070847,0.1,210.69,210.64,44.15220255]
[1758693071637,0.1,210.69,210.64,38.62]
[1758693071952,4.84635867,210.69,210.64,44.15220255]
[1758693073452,4.84635867,210.69,210.53,62.59722074]
[1758693073453,0.69,210.68,210.56,26.0]
[1758693073757,0.69,210.68,210.62,13.59559401]
[1758693073950,4.84635867,210.69,210.63,38.54]
[1758693074126,0.1,210.69,210.64,13.59559401]
[1758693074828,0.1,210.69,210.67,5.53220255]
[1758693075035,0.1,210.69,210.68,38.54]
[1758693076247,0.1,210.69,210.68,56.88212903]
[1758693077241,1e-08,210.69,210.68,56.88212903]
[1758693077433,1e-08,210.7,210.69,13.59559401]
[1758693077621,1e-08,210.7,210.69,18.34190375]
[1758693077949,1e-08,210.7,210.69,18.81653472]
[1758693078160,1e-08,210.76,210.73,27.92559401]
[1758693078453,1e-08,210.76,210.75,45.12779656]
[1758693079550,1e-08,210.76,210.75,49.87275504]
[1758693080253,1e-08,210.76,210.75,44.34055249]
[1758693080428,1e-08,210.76,210.75,88.49275504]
[1758693080750,1e-08,210.76,210.75,88.47275504]
[1758693081638,1e-08,210.76,210.75,62.47275504]
[1758693082343,1e-08,210.76,210.75,23.87275504]
[1758693082538,1e-08,210.76,210.75,62.47275504]
[1758693082942,0.1,210.81,210.79,39.59559401]
[1758693083259,1.90100516,211.07,210.84,39.59559401]
[1758693083464,1.90100516,211.07,210.79,0.4744058]
[1758693083465,2.48131121,210.97,210.93,5.53220255]
[1758693083666,0.68,210.96,210.83,13.59559401]
[1758693083956,2.48131121,210.97,210.82,26.0]
[1758693083957,0.68,210.95,210.9,13.59559401]
[1758693084152,4.74001042,210.97,210.9,13.59559401]
[1758693084153,0.68,210.94,210.91,38.64]
[1758693084342,0.68,210.93,210.91,44.17220255]
[1758693084747,19.0711254,210.97,210.85,13.59559401]
[1758693085050,0.68,210.92,210.89,13.59559401]
[1758693085225,0.68,210.91,210.88,5.53220255]
[1758693085432,19.0711254,210.97,210.78,11.86053833]